[Event "*** SCC Grand Prix: Titled Tuesday Blitz"]
[Site "Chess.com"]
[Date "2020.06.02"]
[Round "8"]
[White "floplover"]
[Black "sergeikim"]
[Result "0-1"]
[WhiteElo "2214"]
[BlackElo "2470"]
[TimeControl "180+1"]
[EndTime "11:35:46 PDT"]
[Termination "sergeikim won on time"]

1. d4 {[%clk 0:03:00.9]} 1... Nf6 {[%clk 0:02:59.3]} 2. c4 {[%clk 0:03:00.4]}
2... g6 {[%clk 0:02:59.3]} 3. Nc3 {[%clk 0:02:59.2]} 3... Bg7 {[%clk 0:02:59.5]}
4. e4 {[%clk 0:02:58.9]} 4... d6 {[%clk 0:02:59.6]} 5. Nf3 {[%clk 0:02:59.2]}
5... O-O {[%clk 0:02:59.2]} 6. Be2 {[%clk 0:02:59.9]} 6... e5 {[%clk 0:02:59]}
7. O-O {[%clk 0:03:00.5]} 7... exd4 {[%clk 0:02:58.8]} 8. Nxd4 {[%clk
0:02:59.9]} 8... Re8 {[%clk 0:02:58.8]} 9. f3 {[%clk 0:03:00.1]} 9... Nbd7
{[%clk 0:02:58.7]} 10. Bg5 {[%clk 0:02:30.1]} 10... c6 {[%clk 0:02:58.2]} 11.
Qd2 {[%clk 0:02:25.9]} 11... a5 {[%clk 0:02:57.4]} 12. Rad1 {[%clk 0:02:19.8]}
12... a4 {[%clk 0:02:57.1]} 13. Kh1 {[%clk 0:02:13.9]} 13... Qa5 {[%clk
0:02:56.1]} 14. Be3 {[%clk 0:02:04.2]} 14... Nc5 {[%clk 0:02:53.5]} 15. Qc2
{[%clk 0:01:57.6]} 15... Nfd7 {[%clk 0:02:50.8]} 16. Rfe1 {[%clk 0:01:34.7]}
16... Ne5 {[%clk 0:02:50]} 17. Bf1 {[%clk 0:01:33.6]} 17... Qb4 {[%clk
0:02:48.2]} 18. Qc1 {[%clk 0:00:44.2]} 18... Ned7 {[%clk 0:02:35.5]} 19. Nc2
{[%clk 0:00:39.7]} 19... Qa5 {[%clk 0:02:27.3]} 20. Rxd6 {[%clk 0:00:39.7]}
20... Ne5 {[%clk 0:02:23.1]} 21. Red1 {[%clk 0:00:34.9]} 21... Be6 {[%clk
0:02:18.2]} 22. Nd4 {[%clk 0:00:20.5]} 22... Bxc4 {[%clk 0:02:13.1]} 23. b3
{[%clk 0:00:15.5]} 23... axb3 {[%clk 0:02:09]} 24. axb3 {[%clk 0:00:14.9]} 24...
Bxf1 {[%clk 0:01:57.2]} 25. Rxf1 {[%clk 0:00:13.9]} 25... Ned3 {[%clk
0:01:51.4]} 26. Qc2 {[%clk 0:00:11.8]} 26... Be5 {[%clk 0:01:43.9]} 27. b4
{[%clk 0:00:06]} 27... Nxb4 {[%clk 0:01:41.9]} 28. Qf2 {[%clk 0:00:02.9]} 28...
Bxd6 {[%clk 0:01:40.9]} 29. Qh4 {[%clk 0:00:03.3]} 29... Ne6 {[%clk 0:01:31.1]}
30. Nf5 {[%clk 0:00:02.6]} 30... gxf5 {[%clk 0:01:27.6]} 31. exf5 {[%clk
0:00:03.5]} 31... Qxf5 {[%clk 0:01:25.3]} 32. Ne4 {[%clk 0:00:04]} 32... Be7
{[%clk 0:01:22.1]} 33. Qg3+ {[%clk 0:00:04]} 33... Qg6 {[%clk 0:01:21.1]} 34.
Qe5 {[%clk 0:00:03.8]} 34... Nd3 {[%clk 0:01:17.4]} 35. Qc3 {[%clk 0:00:02.8]}
35... Rad8 {[%clk 0:01:14.8]} 36. Bb6 {[%clk 0:00:02.2]} 36... Rd5 {[%clk
0:01:13.4]} 37. Qa1 {[%clk 0:00:01.4]} 37... f5 {[%clk 0:01:12.3]} 0-1

[Event "*** SCC Grand Prix: Titled Tuesday Blitz"]
[Site "Chess.com"]
[Date "2020.06.02"]
[Round "8"]
[White "TrenerChos"]
[Black "AungTZ"]
[Result "1-0"]
[WhiteElo "2363"]
[BlackElo "1954"]
[TimeControl "180+1"]
[EndTime "11:35:51 PDT"]
[Termination "TrenerChos won by resignation"]

1. e4 {[%clk 0:03:00.9]} 1... c5 {[%clk 0:02:59]} 2. Nf3 {[%clk 0:02:36.9]} 2...
Nc6 {[%clk 0:02:57.4]} 3. Bb5 {[%clk 0:02:35.2]} 3... e6 {[%clk 0:02:56.8]} 4.
O-O {[%clk 0:02:29.6]} 4... Nge7 {[%clk 0:02:54.9]} 5. Re1 {[%clk 0:02:29.2]}
5... a6 {[%clk 0:02:54.7]} 6. Bf1 {[%clk 0:02:28.6]} 6... d5 {[%clk 0:02:53.8]}
7. e5 {[%clk 0:02:25.5]} 7... Ng6 {[%clk 0:02:53.4]} 8. c3 {[%clk 0:02:24.8]}
8... Be7 {[%clk 0:02:52.4]} 9. d4 {[%clk 0:02:23.4]} 9... O-O {[%clk 0:02:50.8]}
10. a3 {[%clk 0:02:22.5]} 10... f6 {[%clk 0:02:42.9]} 11. exf6 {[%clk
0:02:20.9]} 11... Bxf6 {[%clk 0:02:42.8]} 12. dxc5 {[%clk 0:02:19.3]} 12... e5
{[%clk 0:02:42.3]} 13. Be3 {[%clk 0:02:17.4]} 13... d4 {[%clk 0:02:39.7]} 14.
cxd4 {[%clk 0:02:11.6]} 14... exd4 {[%clk 0:02:39]} 15. Bc1 {[%clk 0:02:08.6]}
15... Qd5 {[%clk 0:02:28.9]} 16. Nbd2 {[%clk 0:02:00.5]} 16... Kh8 {[%clk
0:02:09.6]} 17. Ne4 {[%clk 0:01:57.5]} 17... Be7 {[%clk 0:02:05.3]} 18. Nfd2
{[%clk 0:01:50.4]} 18... Bf5 {[%clk 0:01:59.9]} 19. Bc4 {[%clk 0:01:49.1]} 19...
Qd7 {[%clk 0:01:57.2]} 20. b4 {[%clk 0:01:45.2]} 20... Rae8 {[%clk 0:01:52.9]}
21. Bb2 {[%clk 0:01:32.6]} 21... Nf4 {[%clk 0:01:36.5]} 22. Ng3 {[%clk
0:01:32.1]} 22... Bg4 {[%clk 0:01:29.8]} 23. Qb3 {[%clk 0:01:23.9]} 23... Bg5
{[%clk 0:01:07]} 24. Nde4 {[%clk 0:01:17.3]} 24... Bh6 {[%clk 0:01:05.9]} 25.
Nd6 {[%clk 0:01:16]} 25... Rxe1+ {[%clk 0:01:03.8]} 26. Rxe1 {[%clk 0:01:15.2]}
26... Bh3 {[%clk 0:00:41.9]} 27. Nf7+ {[%clk 0:01:06.5]} 27... Rxf7 {[%clk
0:00:35.8]} 28. Bxf7 {[%clk 0:01:06.2]} 28... g5 {[%clk 0:00:21.9]} 29. Be8
{[%clk 0:00:56.4]} 29... Qg7 {[%clk 0:00:04.7]} 30. Bxc6 {[%clk 0:00:54.5]} 1-0

[Event "*** SCC Grand Prix: Titled Tuesday Blitz"]
[Site "Chess.com"]
[Date "2020.06.02"]
[Round "8"]
[White "cassoulet"]
[Black "temus_galaktionov"]
[Result "1-0"]
[WhiteElo "2628"]
[BlackElo "2720"]
[TimeControl "180+1"]
[EndTime "11:35:53 PDT"]
[Termination "cassoulet won by resignation"]

1. e4 {[%clk 0:03:00.9]} 1... c6 {[%clk 0:03:00.9]} 2. d4 {[%clk 0:03:00.8]}
2... g6 {[%clk 0:03:01.2]} 3. Nc3 {[%clk 0:03:00.7]} 3... Bg7 {[%clk 0:03:00.4]}
4. Nf3 {[%clk 0:03:00.5]} 4... d6 {[%clk 0:02:59.2]} 5. h3 {[%clk 0:02:57.7]}
5... Nd7 {[%clk 0:02:58.8]} 6. Bg5 {[%clk 0:02:54.9]} 6... h6 {[%clk 0:02:57.6]}
7. Be3 {[%clk 0:02:54.5]} 7... e5 {[%clk 0:02:56.9]} 8. Bc4 {[%clk 0:02:52.2]}
8... Ngf6 {[%clk 0:02:56.1]} 9. Qd2 {[%clk 0:02:48.2]} 9... Qe7 {[%clk
0:02:53.1]} 10. O-O {[%clk 0:02:33.9]} 10... b5 {[%clk 0:02:51.1]} 11. Bb3
{[%clk 0:02:33.3]} 11... b4 {[%clk 0:02:50]} 12. Ne2 {[%clk 0:02:31.3]} 12...
Nxe4 {[%clk 0:02:50]} 13. Qxb4 {[%clk 0:02:30.5]} 13... exd4 {[%clk 0:02:41.4]}
14. Bxd4 {[%clk 0:02:03.8]} 14... c5 {[%clk 0:02:39.8]} 15. Bxg7 {[%clk
0:02:03.9]} 15... cxb4 {[%clk 0:02:38.4]} 16. Bxh8 {[%clk 0:02:04.4]} 16... f6
{[%clk 0:02:18.1]} 17. Rfe1 {[%clk 0:01:45.8]} 17... Bb7 {[%clk 0:02:17.3]} 18.
Nf4 {[%clk 0:01:17.8]} 18... O-O-O {[%clk 0:01:10.6]} 19. Nd5 {[%clk 0:01:13.3]}
19... Bxd5 {[%clk 0:00:54.8]} 20. Bxd5 {[%clk 0:01:14.2]} 20... Ndc5 {[%clk
0:00:55.3]} 21. Nd2 {[%clk 0:01:05.2]} 21... Rxh8 {[%clk 0:00:52.4]} 22. Nxe4
{[%clk 0:01:03.9]} 22... Nd7 {[%clk 0:00:26.5]} 23. Rad1 {[%clk 0:00:50.8]}
23... Kc7 {[%clk 0:00:26.4]} 24. Nc5 {[%clk 0:00:45.3]} 24... Ne5 {[%clk
0:00:24.8]} 25. Ne6+ {[%clk 0:00:43.3]} 25... Kb6 {[%clk 0:00:25.2]} 26. f4
{[%clk 0:00:43.5]} 26... Nf7 {[%clk 0:00:17.4]} 27. Re4 {[%clk 0:00:41.4]} 27...
a5 {[%clk 0:00:16.5]} 28. a3 {[%clk 0:00:41.7]} 28... Rc8 {[%clk 0:00:14.6]} 29.
axb4 {[%clk 0:00:41.9]} 29... Rxc2 {[%clk 0:00:15.1]} 30. bxa5+ {[%clk
0:00:42.4]} 30... Ka7 {[%clk 0:00:15.7]} 31. Nd4 {[%clk 0:00:40.2]} 31... Qc7
{[%clk 0:00:13.4]} 32. Nb5+ {[%clk 0:00:40.1]} 1-0

[Event "*** SCC Grand Prix: Titled Tuesday Blitz"]
[Site "Chess.com"]
[Date "2020.06.02"]
[Round "8"]
[White "plumalka"]
[Black "TregubovP"]
[Result "0-1"]
[WhiteElo "2418"]
[BlackElo "2569"]
[TimeControl "180+1"]
[EndTime "11:35:55 PDT"]
[Termination "TregubovP won by resignation"]

1. e4 {[%clk 0:03:00.9]} 1... e6 {[%clk 0:02:59.8]} 2. d4 {[%clk 0:02:59.9]}
2... d5 {[%clk 0:03:00.3]} 3. Nc3 {[%clk 0:02:59.9]} 3... Bb4 {[%clk 0:02:59.3]}
4. Qd3 {[%clk 0:02:59.3]} 4... dxe4 {[%clk 0:02:51.4]} 5. Qxe4 {[%clk
0:03:00.2]} 5... Nf6 {[%clk 0:02:50.5]} 6. Qh4 {[%clk 0:02:59.3]} 6... c5 {[%clk
0:02:34.6]} 7. a3 {[%clk 0:02:45.2]} 7... Ba5 {[%clk 0:02:29.7]} 8. dxc5 {[%clk
0:02:43.4]} 8... Bxc3+ {[%clk 0:02:27.9]} 9. bxc3 {[%clk 0:02:44.3]} 9... Qa5
{[%clk 0:02:21.5]} 10. Qb4 {[%clk 0:02:43.7]} 10... Nc6 {[%clk 0:02:21.2]} 11.
Bb5 {[%clk 0:02:29]} 11... Qc7 {[%clk 0:02:20.3]} 12. Nf3 {[%clk 0:02:22.9]}
12... O-O {[%clk 0:02:14.4]} 13. Bxc6 {[%clk 0:01:59.6]} 13... Qxc6 {[%clk
0:02:11.8]} 14. O-O {[%clk 0:01:59.7]} 14... b6 {[%clk 0:01:50.7]} 15. cxb6
{[%clk 0:01:19.9]} 15... axb6 {[%clk 0:01:50.7]} 16. Bg5 {[%clk 0:01:16.6]}
16... Nd5 {[%clk 0:01:48.8]} 17. Qh4 {[%clk 0:01:10.9]} 17... Ra4 {[%clk
0:01:44.5]} 18. Qg3 {[%clk 0:01:08.7]} 18... Qxc3 {[%clk 0:01:42.7]} 19. Rad1
{[%clk 0:01:06.2]} 19... Ba6 {[%clk 0:01:41.5]} 20. Rfe1 {[%clk 0:01:03.3]}
20... Qxc2 {[%clk 0:01:37.2]} 21. Ne5 {[%clk 0:00:54.2]} 21... Qf5 {[%clk
0:01:11.2]} 22. Bh6 {[%clk 0:00:48.6]} 22... Qf6 {[%clk 0:01:00.7]} 23. Nd7
{[%clk 0:00:41.8]} 23... Qxh6 {[%clk 0:00:57.2]} 24. Nxf8 {[%clk 0:00:41.9]}
24... Qf4 {[%clk 0:00:48.3]} 25. Qh3 {[%clk 0:00:37]} 25... Kxf8 {[%clk
0:00:37.6]} 26. Qxh7 {[%clk 0:00:22.6]} 26... Qh6 {[%clk 0:00:37.4]} 27. Qe4
{[%clk 0:00:19.3]} 27... Rxe4 {[%clk 0:00:36.7]} 28. Rxe4 {[%clk 0:00:19.4]}
28... Nc3 {[%clk 0:00:35.3]} 29. Rd8+ {[%clk 0:00:18.4]} 29... Ke7 {[%clk
0:00:35.3]} 0-1

[Event "*** SCC Grand Prix: Titled Tuesday Blitz"]
[Site "Chess.com"]
[Date "2020.06.02"]
[Round "8"]
[White "crazy_but_lazy"]
[Black "Anna_ChessMate"]
[Result "1-0"]
[WhiteElo "2422"]
[BlackElo "2539"]
[TimeControl "180+1"]
[EndTime "11:35:55 PDT"]
[Termination "crazy_but_lazy won by resignation"]

1. d4 {[%clk 0:03:00.9]} 1... Nf6 {[%clk 0:02:56.7]} 2. c4 {[%clk 0:02:59]} 2...
g6 {[%clk 0:02:56.6]} 3. Nc3 {[%clk 0:02:58.9]} 3... d5 {[%clk 0:02:52]} 4. cxd5
{[%clk 0:02:57.1]} 4... Nxd5 {[%clk 0:02:52.9]} 5. e4 {[%clk 0:02:57.8]} 5...
Nxc3 {[%clk 0:02:52.6]} 6. bxc3 {[%clk 0:02:58.7]} 6... Bg7 {[%clk 0:02:53.4]}
7. Qa4+ {[%clk 0:02:59.4]} 7... Bd7 {[%clk 0:02:51.7]} 8. Qb3 {[%clk 0:02:58.1]}
8... b6 {[%clk 0:02:46.4]} 9. Nf3 {[%clk 0:02:58.2]} 9... O-O {[%clk 0:02:46.6]}
10. Be2 {[%clk 0:02:52.5]} 10... c5 {[%clk 0:02:46.4]} 11. O-O {[%clk
0:02:51.4]} 11... Nc6 {[%clk 0:02:44.1]} 12. Be3 {[%clk 0:02:48.9]} 12... cxd4
{[%clk 0:02:42.3]} 13. cxd4 {[%clk 0:02:49.8]} 13... Rc8 {[%clk 0:02:42.7]} 14.
Ba6 {[%clk 0:02:44.6]} 14... Na5 {[%clk 0:02:42.1]} 15. Qd3 {[%clk 0:02:38.4]}
15... Ra8 {[%clk 0:02:30.3]} 16. Rfc1 {[%clk 0:02:32.2]} 16... Bc8 {[%clk
0:02:27.7]} 17. Bb5 {[%clk 0:02:22.5]} 17... Bb7 {[%clk 0:02:25.9]} 18. Bd2
{[%clk 0:02:22.3]} 18... a6 {[%clk 0:02:20]} 19. Bxa5 {[%clk 0:02:16]} 19...
axb5 {[%clk 0:02:19.3]} 20. Bb4 {[%clk 0:02:16.4]} 20... Qd7 {[%clk 0:02:15.9]}
21. a3 {[%clk 0:02:09.8]} 21... Rfd8 {[%clk 0:02:08.6]} 22. Rd1 {[%clk
0:00:55.6]} 22... Qg4 {[%clk 0:02:06.7]} 23. Re1 {[%clk 0:00:55.9]} 23... Bxd4
{[%clk 0:01:54.3]} 24. Nxd4 {[%clk 0:00:56]} 24... e5 {[%clk 0:01:54.4]} 25. Qf3
{[%clk 0:00:56.5]} 25... Qh4 {[%clk 0:01:23.5]} 26. Nxb5 {[%clk 0:00:51.9]}
26... f5 {[%clk 0:01:23.9]} 27. Nd6 {[%clk 0:00:48]} 27... Bc6 {[%clk
0:01:15.1]} 28. Qb3+ {[%clk 0:00:43.1]} 28... Kg7 {[%clk 0:01:10.1]} 29. Rac1
{[%clk 0:00:22.1]} 29... Bd7 {[%clk 0:01:09.5]} 30. Rc7 {[%clk 0:00:20]} 30...
Qf6 {[%clk 0:01:04.9]} 31. exf5 {[%clk 0:00:17.3]} 31... gxf5 {[%clk 0:01:04.5]}
32. Qg3+ {[%clk 0:00:16.7]} 32... Kh8 {[%clk 0:01:04.9]} 33. Qxe5 {[%clk
0:00:17]} 33... Qxe5 {[%clk 0:01:05]} 34. Rxe5 {[%clk 0:00:17.9]} 34... Kg7
{[%clk 0:00:56.6]} 35. Re7+ {[%clk 0:00:16.9]} 35... Kf6 {[%clk 0:00:57.3]} 36.
Rexd7 {[%clk 0:00:17.8]} 36... Rxd7 {[%clk 0:00:54.9]} 37. Rxd7 {[%clk
0:00:18.1]} 37... Ke6 {[%clk 0:00:55.8]} 38. Rxh7 {[%clk 0:00:16.9]} 38... Kd5
{[%clk 0:00:54.3]} 39. h4 {[%clk 0:00:17.2]} 1-0

[Event "*** SCC Grand Prix: Titled Tuesday Blitz"]
[Site "Chess.com"]
[Date "2020.06.02"]
[Round "8"]
[White "goldenpuppy"]
[Black "Storchnoi"]
[Result "1-0"]
[WhiteElo "2187"]
[BlackElo "2032"]
[TimeControl "180+1"]
[EndTime "11:35:56 PDT"]
[Termination "goldenpuppy won by resignation"]

1. e4 {[%clk 0:03:00.9]} 1... c5 {[%clk 0:02:59.3]} 2. Nf3 {[%clk 0:03:00.8]}
2... Nc6 {[%clk 0:02:59.3]} 3. d4 {[%clk 0:02:59.6]} 3... cxd4 {[%clk
0:02:59.1]} 4. Nxd4 {[%clk 0:02:59.6]} 4... Nf6 {[%clk 0:02:59.7]} 5. Nc3 {[%clk
0:02:59.7]} 5... d6 {[%clk 0:03:00.1]} 6. Bg5 {[%clk 0:02:59.3]} 6... e6 {[%clk
0:03:00.2]} 7. Qd2 {[%clk 0:02:59.6]} 7... a6 {[%clk 0:02:59.6]} 8. O-O-O {[%clk
0:02:59.4]} 8... Bd7 {[%clk 0:02:59.8]} 9. f4 {[%clk 0:02:59.7]} 9... b5 {[%clk
0:02:59.4]} 10. Nf3 {[%clk 0:02:59.7]} 10... Qc7 {[%clk 0:02:41.4]} 11. Bxf6
{[%clk 0:02:50.7]} 11... gxf6 {[%clk 0:02:41]} 12. Kb1 {[%clk 0:02:51.1]} 12...
Na5 {[%clk 0:02:31.9]} 13. f5 {[%clk 0:02:46.2]} 13... O-O-O {[%clk 0:02:24.9]}
14. Bd3 {[%clk 0:02:40.4]} 14... Nc4 {[%clk 0:02:23.4]} 15. Bxc4 {[%clk
0:02:40.2]} 15... Qxc4 {[%clk 0:02:22.2]} 16. Qd4 {[%clk 0:02:35.7]} 16... Qxd4
{[%clk 0:01:54.5]} 17. Nxd4 {[%clk 0:02:36.6]} 17... Be7 {[%clk 0:01:46.9]} 18.
Nce2 {[%clk 0:02:20.6]} 18... Kb7 {[%clk 0:01:46.6]} 19. Rc1 {[%clk 0:02:18.4]}
19... Rc8 {[%clk 0:01:46.2]} 20. Rhg1 {[%clk 0:02:08.5]} 20... e5 {[%clk
0:01:45.5]} 21. Nf3 {[%clk 0:02:07.3]} 21... Bc6 {[%clk 0:01:45.4]} 22. Ng3
{[%clk 0:02:04.8]} 22... d5 {[%clk 0:01:43]} 23. exd5 {[%clk 0:02:02.6]} 23...
Bxd5 {[%clk 0:01:43]} 24. Rcd1 {[%clk 0:02:03.2]} 24... Rhd8 {[%clk 0:01:37.9]}
25. Nd2 {[%clk 0:02:01.1]} 25... Bc6 {[%clk 0:01:27.4]} 26. Nde4 {[%clk
0:02:00.5]} 26... Kc7 {[%clk 0:01:20.3]} 27. Kc1 {[%clk 0:01:58.7]} 27... b4
{[%clk 0:01:12.2]} 28. Rxd8 {[%clk 0:01:58]} 28... Rxd8 {[%clk 0:01:11.8]} 29.
Rd1 {[%clk 0:01:58.5]} 29... Rxd1+ {[%clk 0:01:11.5]} 30. Kxd1 {[%clk
0:01:59.4]} 30... a5 {[%clk 0:01:09.2]} 31. b3 {[%clk 0:01:58.7]} 31... Bd5
{[%clk 0:01:04.4]} 32. Kd2 {[%clk 0:01:57.6]} 32... Kc6 {[%clk 0:01:04.2]} 33.
Kd3 {[%clk 0:01:57.9]} 33... Bd8 {[%clk 0:00:59.8]} 34. Nh5 {[%clk 0:01:58]}
34... Bxe4+ {[%clk 0:00:58.5]} 35. Kxe4 {[%clk 0:01:58.9]} 35... Kc5 {[%clk
0:00:56.6]} 36. g4 {[%clk 0:01:58.4]} 36... Be7 {[%clk 0:00:52.1]} 37. h4 {[%clk
0:01:58.4]} 37... h6 {[%clk 0:00:51.9]} 38. Ng3 {[%clk 0:01:57.7]} 38... Bd8
{[%clk 0:00:48.6]} 39. Nf1 {[%clk 0:01:57.2]} 39... Kd6 {[%clk 0:00:46.7]} 40.
Nd2 {[%clk 0:01:57.3]} 40... Bb6 {[%clk 0:00:46.3]} 41. Nc4+ {[%clk 0:01:56.8]}
41... Kc6 {[%clk 0:00:46.5]} 42. Nd2 {[%clk 0:01:48.2]} 42... Bf2 {[%clk
0:00:45.1]} 43. h5 {[%clk 0:01:47.7]} 43... Kc5 {[%clk 0:00:43.8]} 44. Nf3
{[%clk 0:01:46.2]} 44... Kd6 {[%clk 0:00:39.8]} 45. g5 {[%clk 0:01:41.8]} 45...
fxg5 {[%clk 0:00:38.6]} 46. Nxe5 {[%clk 0:01:41.9]} 46... Ke7 {[%clk 0:00:30.4]}
47. Ng4 {[%clk 0:01:41.8]} 47... Bc5 {[%clk 0:00:28.9]} 48. Nxh6 {[%clk
0:01:41.8]} 48... Kf6 {[%clk 0:00:27.6]} 49. Ng4+ {[%clk 0:01:41.9]} 49... Kg7
{[%clk 0:00:27.9]} 50. Kd5 {[%clk 0:01:42.1]} 50... Bf8 {[%clk 0:00:23.1]} 51.
Ke5 {[%clk 0:01:41.6]} 51... Bc5 {[%clk 0:00:19.6]} 52. f6+ {[%clk 0:01:41.7]}
52... Kh7 {[%clk 0:00:19.8]} 53. Kf5 {[%clk 0:01:42.5]} 53... Bb6 {[%clk
0:00:15.2]} 54. Kxg5 {[%clk 0:01:42.5]} 54... Bd8 {[%clk 0:00:16.1]} 55. Kf5
{[%clk 0:01:42.8]} 55... Bc7 {[%clk 0:00:16]} 56. Ke4 {[%clk 0:01:42.9]} 56...
Bg3 {[%clk 0:00:16.9]} 57. Kd5 {[%clk 0:01:42.9]} 57... Bh4 {[%clk 0:00:16.9]}
58. Kc6 {[%clk 0:01:43.4]} 58... Bg5 {[%clk 0:00:17.4]} 59. Kd7 {[%clk
0:01:43.6]} 59... Bd2 {[%clk 0:00:17.3]} 60. Ke7 {[%clk 0:01:43.8]} 60... Kg8
{[%clk 0:00:17.8]} 61. h6 {[%clk 0:01:43.2]} 61... Bxh6 {[%clk 0:00:18.1]} 62.
Nxh6+ {[%clk 0:01:43.2]} 62... Kh7 {[%clk 0:00:19]} 63. Nxf7 {[%clk 0:01:43.8]}
63... Kg6 {[%clk 0:00:19.2]} 64. Ne5+ {[%clk 0:01:44.1]} 64... Kf5 {[%clk
0:00:19.9]} 65. f7 {[%clk 0:01:45]} 65... Kxe5 {[%clk 0:00:20.2]} 66. f8=Q
{[%clk 0:01:45.9]} 1-0

[Event "*** SCC Grand Prix: Titled Tuesday Blitz"]
[Site "Chess.com"]
[Date "2020.06.02"]
[Round "8"]
[White "imdvb6307"]
[Black "WiktoriaPOL"]
[Result "1-0"]
[WhiteElo "2373"]
[BlackElo "2038"]
[TimeControl "180+1"]
[EndTime "11:35:57 PDT"]
[Termination "imdvb6307 won by resignation"]

1. c4 {[%clk 0:03:00.2]} 1... e5 {[%clk 0:02:55.3]} 2. Nc3 {[%clk 0:02:59.5]}
2... Nf6 {[%clk 0:02:53.9]} 3. Nf3 {[%clk 0:02:59]} 3... Nc6 {[%clk 0:02:53.2]}
4. e3 {[%clk 0:02:59.1]} 4... g6 {[%clk 0:02:49.6]} 5. d4 {[%clk 0:02:56.6]}
5... exd4 {[%clk 0:02:50.5]} 6. exd4 {[%clk 0:02:56.3]} 6... d5 {[%clk
0:02:50.3]} 7. cxd5 {[%clk 0:02:53.9]} 7... Nxd5 {[%clk 0:02:51.2]} 8. Bc4
{[%clk 0:02:46.3]} 8... Nxc3 {[%clk 0:02:45.3]} 9. bxc3 {[%clk 0:02:45.7]} 9...
Bg7 {[%clk 0:02:45.7]} 10. Bg5 {[%clk 0:02:35.7]} 10... Qd6 {[%clk 0:02:40.7]}
11. Qd2 {[%clk 0:02:24]} 11... O-O {[%clk 0:02:38.1]} 12. O-O {[%clk 0:02:22.9]}
12... Bg4 {[%clk 0:02:34.7]} 13. Bf4 {[%clk 0:02:20.1]} 13... Qd7 {[%clk
0:02:31.6]} 14. Ng5 {[%clk 0:02:12.3]} 14... h6 {[%clk 0:02:27.7]} 15. Ne4
{[%clk 0:02:11.1]} 15... Kh7 {[%clk 0:02:11.6]} 16. Nc5 {[%clk 0:02:08]} 16...
Qc8 {[%clk 0:02:05.2]} 17. Rfe1 {[%clk 0:01:37.7]} 17... b6 {[%clk 0:02:04.7]}
18. Ba6 {[%clk 0:01:36]} 18... Qf5 {[%clk 0:02:02.1]} 19. Ne4 {[%clk 0:01:06.3]}
19... g5 {[%clk 0:01:50]} 20. Bxc7 {[%clk 0:00:59.2]} 20... Rae8 {[%clk
0:01:28.8]} 21. Bd3 {[%clk 0:00:45.2]} 21... Qa5 {[%clk 0:01:09.3]} 22. Nf6+
{[%clk 0:00:41.5]} 22... Kh8 {[%clk 0:01:09.3]} 23. Nxe8 {[%clk 0:00:39.1]}
23... Nxd4 {[%clk 0:01:06]} 24. Nxg7 {[%clk 0:00:36.8]} 24... Kxg7 {[%clk
0:01:06.9]} 25. Be5+ {[%clk 0:00:36.5]} 25... Kg8 {[%clk 0:01:02.1]} 26. Bxd4
{[%clk 0:00:36.2]} 26... Rd8 {[%clk 0:01:03]} 27. f3 {[%clk 0:00:36]} 27... Be6
{[%clk 0:01:00]} 28. Re5 {[%clk 0:00:32.2]} 28... Qa4 {[%clk 0:00:53.3]} 29. Bc2
{[%clk 0:00:28.4]} 29... Qc6 {[%clk 0:00:50.9]} 30. Qd3 {[%clk 0:00:28.1]} 30...
Kf8 {[%clk 0:00:47.2]} 31. Qh7 {[%clk 0:00:27.8]} 31... Ke7 {[%clk 0:00:45.4]}
32. Be4 {[%clk 0:00:25.1]} 32... Qc4 {[%clk 0:00:41.2]} 33. Qxh6 {[%clk
0:00:24.8]} 33... Rxd4 {[%clk 0:00:39.6]} 34. Rxe6+ {[%clk 0:00:20.9]} 34...
fxe6 {[%clk 0:00:36.3]} 35. Qg7+ {[%clk 0:00:20.9]} 1-0

[Event "*** SCC Grand Prix: Titled Tuesday Blitz"]
[Site "Chess.com"]
[Date "2020.06.02"]
[Round "8"]
[White "AGW2016"]
[Black "kleopl"]
[Result "0-1"]
[WhiteElo "2307"]
[BlackElo "2456"]
[TimeControl "180+1"]
[EndTime "11:36:00 PDT"]
[Termination "kleopl won by checkmate"]

1. e4 {[%clk 0:03:00.9]} 1... d5 {[%clk 0:02:58.6]} 2. exd5 {[%clk 0:03:01]}
2... Qxd5 {[%clk 0:02:59.5]} 3. Nc3 {[%clk 0:03:01.5]} 3... Qd6 {[%clk
0:02:59.7]} 4. Nf3 {[%clk 0:03:01.7]} 4... Nf6 {[%clk 0:02:59.2]} 5. d4 {[%clk
0:03:00.5]} 5... c6 {[%clk 0:02:59.2]} 6. Bc4 {[%clk 0:02:59.5]} 6... Bg4 {[%clk
0:02:56.9]} 7. h3 {[%clk 0:02:58.8]} 7... Bxf3 {[%clk 0:02:55.1]} 8. Qxf3 {[%clk
0:02:56.6]} 8... Qxd4 {[%clk 0:02:54.9]} 9. Bb3 {[%clk 0:02:56.2]} 9... Nbd7
{[%clk 0:02:50.4]} 10. Be3 {[%clk 0:02:56.4]} 10... Qb4 {[%clk 0:02:50.1]} 11.
a3 {[%clk 0:02:55.2]} 11... Qa5 {[%clk 0:02:49.7]} 12. O-O {[%clk 0:02:52]}
12... e6 {[%clk 0:02:49.6]} 13. Rad1 {[%clk 0:02:50.5]} 13... Be7 {[%clk
0:02:48.4]} 14. Ne4 {[%clk 0:02:45]} 14... Nxe4 {[%clk 0:02:30.6]} 15. Qxe4
{[%clk 0:02:45.1]} 15... Nf6 {[%clk 0:02:29.8]} 16. Qf3 {[%clk 0:02:29.1]} 16...
O-O {[%clk 0:02:28]} 17. Rd2 {[%clk 0:02:24.1]} 17... Rfd8 {[%clk 0:02:27.4]}
18. Rfd1 {[%clk 0:02:24.4]} 18... Rxd2 {[%clk 0:02:27.4]} 19. Rxd2 {[%clk
0:02:24.2]} 19... Rd8 {[%clk 0:02:26.9]} 20. Rxd8+ {[%clk 0:02:23.3]} 20... Bxd8
{[%clk 0:02:19.5]} 21. Qg3 {[%clk 0:02:18.1]} 21... Bc7 {[%clk 0:02:09.6]} 22.
Qh4 {[%clk 0:02:16.7]} 22... Qe5 {[%clk 0:02:02.9]} 23. g3 {[%clk 0:02:09.1]}
23... Qxb2 {[%clk 0:01:59.1]} 24. Qb4 {[%clk 0:02:02.3]} 24... b6 {[%clk
0:01:46.3]} 25. Qa4 {[%clk 0:02:02.5]} 25... h6 {[%clk 0:01:23.8]} 26. Qxc6
{[%clk 0:01:55.8]} 26... Qe5 {[%clk 0:01:18.9]} 27. Qa8+ {[%clk 0:01:49.3]}
27... Kh7 {[%clk 0:01:10]} 28. Qxa7 {[%clk 0:01:49.2]} 28... Qd6 {[%clk
0:01:00.4]} 29. Qa6 {[%clk 0:01:43.3]} 29... g6 {[%clk 0:00:53.1]} 30. a4 {[%clk
0:01:36.1]} 30... Nh5 {[%clk 0:00:47.3]} 31. Qe2 {[%clk 0:01:31.2]} 31... Qe5
{[%clk 0:00:42]} 32. Qf3 {[%clk 0:01:28.5]} 32... Kg7 {[%clk 0:00:37]} 33. Qg4
{[%clk 0:01:02.8]} 33... Nxg3 {[%clk 0:00:29.1]} 34. Bc4 {[%clk 0:00:39]} 34...
Nf5 {[%clk 0:00:27]} 35. Qf3 {[%clk 0:00:30.1]} 35... Qa1+ {[%clk 0:00:23.3]}
36. Kg2 {[%clk 0:00:29.8]} 36... Nh4# {[%clk 0:00:22.5]} 0-1